[Event "Early-Titled-Tuesday-Blitz-February-13-2024"]
[Site "Chess.com"]
[Date "2024.02.13"]
[Round "10"]
[White "ViIIagra"]
[Black "Kirill_Klukin"]
[Result "1-0"]
[WhiteElo "2971"]
[BlackElo "2817"]
[TimeControl "180+1"]
[EndTime "9:59:44 PST"]
[Termination "ViIIagra won by resignation"]

1. Nf3 {[%clk 0:03:00.9]} 1... c5 {[%clk 0:02:58.7]} 2. e3 {[%clk 0:03:01]} 2...
Nf6 {[%clk 0:02:56.8]} 3. d4 {[%clk 0:03:01.6]} 3... d5 {[%clk 0:02:57.3]} 4.
dxc5 {[%clk 0:03:00.9]} 4... e6 {[%clk 0:02:56.7]} 5. b4 {[%clk 0:03:01.2]} 5...
a5 {[%clk 0:02:56.5]} 6. c3 {[%clk 0:03:00.8]} 6... axb4 {[%clk 0:02:39.1]} 7.
cxb4 {[%clk 0:03:01.7]} 7... b6 {[%clk 0:02:39.8]} 8. a4 {[%clk 0:02:58.6]} 8...
bxc5 {[%clk 0:02:38.6]} 9. b5 {[%clk 0:02:59]} 9... Bd6 {[%clk 0:02:34.1]} 10.
Be2 {[%clk 0:02:55.9]} 10... O-O {[%clk 0:02:34.7]} 11. O-O {[%clk 0:02:56.3]}
11... Bb7 {[%clk 0:02:15.3]} 12. Bb2 {[%clk 0:02:56.1]} 12... Nbd7 {[%clk
0:02:10.1]} 13. Nbd2 {[%clk 0:02:56.4]} 13... Bc7 {[%clk 0:02:01.5]} 14. Qc2
{[%clk 0:02:54.3]} 14... Qe7 {[%clk 0:01:59.1]} 15. Bc3 {[%clk 0:02:40.9]} 15...
Rfc8 {[%clk 0:01:54.2]} 16. a5 {[%clk 0:02:11.6]} 16... d4 {[%clk 0:01:49.3]}
17. exd4 {[%clk 0:02:12.5]} 17... cxd4 {[%clk 0:01:48.6]} 18. Nxd4 {[%clk
0:02:02.4]} 18... Bxa5 {[%clk 0:01:01.3]} 19. Nc6 {[%clk 0:01:57.1]} 19... Bxc6
{[%clk 0:01:01.4]} 20. Bxf6 {[%clk 0:01:57]} 20... Nxf6 {[%clk 0:00:50.2]} 21.
bxc6 {[%clk 0:01:55.7]} 21... Bxd2 {[%clk 0:00:47.1]} 22. Rxa8 {[%clk
0:01:52.5]} 22... Rxa8 {[%clk 0:00:48]} 23. Qxd2 {[%clk 0:01:52.8]} 23... Nd5
{[%clk 0:00:47.5]} 24. Bf3 {[%clk 0:01:53.1]} 24... Rd8 {[%clk 0:00:46.3]} 25.
Qa5 {[%clk 0:01:50.2]} 25... Qc7 {[%clk 0:00:37.8]} 26. Qc5 {[%clk 0:01:48.7]}
26... Rc8 {[%clk 0:00:26.4]} 27. Rc1 {[%clk 0:01:45.4]} 27... Nf4 {[%clk
0:00:25]} 28. Qc4 {[%clk 0:01:44.2]} 28... g6 {[%clk 0:00:20.8]} 29. g3 {[%clk
0:01:44]} 29... Nh3+ {[%clk 0:00:17.6]} 30. Kg2 {[%clk 0:01:37.5]} 30... Ng5
{[%clk 0:00:17.6]} 31. Be2 {[%clk 0:01:38.2]} 31... e5 {[%clk 0:00:14.9]} 32.
Bg4 {[%clk 0:01:37.4]} 32... Rb8 {[%clk 0:00:11.6]} 33. h4 {[%clk 0:01:37]}
33... h5 {[%clk 0:00:06.2]} 34. hxg5 {[%clk 0:01:37.4]} 34... hxg4 {[%clk
0:00:06.3]} 35. Qxg4 {[%clk 0:01:38.3]} 35... Rd8 {[%clk 0:00:06.5]} 36. Qe4
{[%clk 0:01:26.4]} 36... Rd4 {[%clk 0:00:06.4]} 37. Qf3 {[%clk 0:01:26.2]} 37...
Rd6 {[%clk 0:00:05.9]} 38. Rc5 {[%clk 0:01:25.9]} 38... Re6 {[%clk 0:00:06.2]}
39. Qd5 {[%clk 0:01:25.5]} 39... Kg7 {[%clk 0:00:05]} 40. Qc4 {[%clk 0:01:24.3]}
40... e4 {[%clk 0:00:03.5]} 41. Qd4+ {[%clk 0:01:23]} 41... Kh7 {[%clk
0:00:04.1]} 42. Qd7 {[%clk 0:01:20.7]} 42... Qxd7 {[%clk 0:00:04.1]} 43. cxd7
{[%clk 0:01:21.6]} 43... Rd6 {[%clk 0:00:05]} 44. Rc7 {[%clk 0:01:22.2]} 44...
Kg7 {[%clk 0:00:05.7]} 45. Kf1 {[%clk 0:01:19.9]} 45... Rd3 {[%clk 0:00:04.4]}
46. Ke2 {[%clk 0:01:19.3]} 46... Kf8 {[%clk 0:00:04.4]} 47. Rc8+ {[%clk
0:01:05.9]} 47... Ke7 {[%clk 0:00:04.9]} 48. d8=Q+ {[%clk 0:01:06.6]} 48... Rxd8
{[%clk 0:00:04.5]} 49. Rxd8 {[%clk 0:01:07.5]} 49... Kxd8 {[%clk 0:00:04.9]} 50.
Ke3 {[%clk 0:01:08.1]} 50... Ke7 {[%clk 0:00:04.8]} 51. Kxe4 {[%clk 0:01:08.7]}
51... Ke6 {[%clk 0:00:05.5]} 52. g4 {[%clk 0:01:05.1]} 52... Kd6 {[%clk
0:00:05.6]} 53. f4 {[%clk 0:01:05.4]} 53... Ke6 {[%clk 0:00:03.8]} 54. f5+
{[%clk 0:01:05.8]} 54... Kd6 {[%clk 0:00:04.1]} 55. Kd4 {[%clk 0:01:06.3]} 55...
Kd7 {[%clk 0:00:04.3]} 56. Kd5 {[%clk 0:01:06.5]} 56... Ke7 {[%clk 0:00:03.8]}
57. Ke5 {[%clk 0:01:07.1]} 57... Ke8 {[%clk 0:00:03.4]} 58. Kf6 {[%clk
0:00:55.7]} 58... gxf5 {[%clk 0:00:03.6]} 59. gxf5 {[%clk 0:00:55.9]} 59... Kf8
{[%clk 0:00:04.3]} 60. g6 {[%clk 0:00:54.1]} 60... Kg8 {[%clk 0:00:04]} 61.
gxf7+ {[%clk 0:00:49.2]} 61... Kf8 {[%clk 0:00:03.4]} 62. Kg6 {[%clk 0:00:49.6]}
1-0

[Event "Early-Titled-Tuesday-Blitz-February-13-2024"]
[Site "Chess.com"]
[Date "2024.02.13"]
[Round "10"]
[White "DonkyDonkyDonkey"]
[Black "Evgeny81"]
[Result "1/2-1/2"]
[WhiteElo "2942"]
[BlackElo "2764"]
[TimeControl "180+1"]
[EndTime "9:59:48 PST"]
[Termination "Game drawn - insufficient material"]

1. d4 {[%clk 0:03:00.9]} 1... d5 {[%clk 0:02:59]} 2. Nc3 {[%clk 0:03:00.4]} 2...
Nf6 {[%clk 0:02:58.5]} 3. Bf4 {[%clk 0:03:00.6]} 3... e6 {[%clk 0:02:56.7]} 4.
Nb5 {[%clk 0:03:00.4]} 4... Na6 {[%clk 0:02:57]} 5. e3 {[%clk 0:03:00.7]} 5...
Be7 {[%clk 0:02:56.3]} 6. Nf3 {[%clk 0:03:00.7]} 6... O-O {[%clk 0:02:56.5]} 7.
a3 {[%clk 0:03:00.1]} 7... Bd7 {[%clk 0:02:55.8]} 8. Nc3 {[%clk 0:02:58.3]} 8...
c5 {[%clk 0:02:53.8]} 9. Bxa6 {[%clk 0:02:58.5]} 9... bxa6 {[%clk 0:02:54.7]}
10. O-O {[%clk 0:02:58.9]} 10... Qb6 {[%clk 0:02:53.7]} 11. Rb1 {[%clk
0:02:58.9]} 11... Rfc8 {[%clk 0:02:52.8]} 12. Ne5 {[%clk 0:02:59]} 12... Be8
{[%clk 0:02:52.6]} 13. Qd2 {[%clk 0:02:56.1]} 13... Rab8 {[%clk 0:02:40.9]} 14.
Rfd1 {[%clk 0:02:52]} 14... Rb7 {[%clk 0:02:40.5]} 15. Qe2 {[%clk 0:02:50.6]}
15... cxd4 {[%clk 0:02:39.6]} 16. Na2 {[%clk 0:02:27.9]} 16... Bb5 {[%clk
0:02:33.2]} 17. Qf3 {[%clk 0:02:25.7]} 17... Rxc2 {[%clk 0:02:28.7]} 18. exd4
{[%clk 0:02:26.1]} 18... Be2 {[%clk 0:02:27.6]} 19. Qg3 {[%clk 0:01:58.5]} 19...
Bxd1 {[%clk 0:02:25.2]} 20. Rxd1 {[%clk 0:01:59.4]} 20... Qxb2 {[%clk
0:02:18.1]} 21. Nb4 {[%clk 0:01:57]} 21... Bxb4 {[%clk 0:02:15.8]} 22. axb4
{[%clk 0:01:57.9]} 22... Qc3 {[%clk 0:02:01.9]} 23. Nd3 {[%clk 0:01:57.1]} 23...
Ne4 {[%clk 0:01:56.7]} 24. Qh4 {[%clk 0:01:57.1]} 24... Qc8 {[%clk 0:01:46]} 25.
f3 {[%clk 0:01:54]} 25... Nc3 {[%clk 0:01:44.1]} 26. Re1 {[%clk 0:01:51.5]}
26... Ne2+ {[%clk 0:01:41.2]} 27. Kh1 {[%clk 0:01:52.1]} 27... Nxf4 {[%clk
0:01:41.1]} 28. Qxf4 {[%clk 0:01:53]} 28... Rxb4 {[%clk 0:01:37.7]} 29. Nxb4
{[%clk 0:01:52.6]} 29... Rc4 {[%clk 0:01:32.1]} 30. Nd3 {[%clk 0:01:50.2]} 30...
Qc7 {[%clk 0:01:20.1]} 31. Qxc7 {[%clk 0:01:46.5]} 31... Rxc7 {[%clk 0:01:19.8]}
32. Nc5 {[%clk 0:01:45.3]} 32... Rc6 {[%clk 0:01:17.1]} 33. f4 {[%clk
0:01:45.4]} 33... g6 {[%clk 0:01:11.9]} 34. Ra1 {[%clk 0:01:43.4]} 34... Rb6
{[%clk 0:01:11.3]} 35. h3 {[%clk 0:01:43.2]} 35... Rb4 {[%clk 0:01:09.3]} 36.
Ra4 {[%clk 0:01:31.9]} 36... Rxa4 {[%clk 0:01:04.6]} 37. Nxa4 {[%clk 0:01:32.8]}
37... Kg7 {[%clk 0:00:59.5]} 38. Kg1 {[%clk 0:01:31.6]} 38... Kf6 {[%clk
0:00:59.7]} 39. Kf2 {[%clk 0:01:32.3]} 39... g5 {[%clk 0:00:59.7]} 40. fxg5+
{[%clk 0:01:32.1]} 40... Kxg5 {[%clk 0:01:00]} 41. Kf3 {[%clk 0:01:31.9]} 41...
a5 {[%clk 0:00:58.5]} 42. Nc5 {[%clk 0:01:31.6]} 42... h5 {[%clk 0:00:55.3]} 43.
g3 {[%clk 0:01:29]} 43... Kf5 {[%clk 0:00:52.1]} 44. g4+ {[%clk 0:01:16.6]}
44... hxg4+ {[%clk 0:00:51.7]} 45. hxg4+ {[%clk 0:01:17.5]} 45... Kg5 {[%clk
0:00:50.9]} 46. Kg3 {[%clk 0:01:17.9]} 46... a4 {[%clk 0:00:43.5]} 47. Nxa4
{[%clk 0:01:16.7]} 47... f5 {[%clk 0:00:42.8]} 48. Nc5 {[%clk 0:00:51.7]} 48...
fxg4 {[%clk 0:00:43.1]} 49. Nxe6+ {[%clk 0:00:33.2]} 49... Kf5 {[%clk 0:00:44]}
50. Nc5 {[%clk 0:00:23.9]} 50... a5 {[%clk 0:00:44.3]} 51. Na4 {[%clk
0:00:06.1]} 51... Ke4 {[%clk 0:00:42.4]} 52. Kxg4 {[%clk 0:00:07]} 52... Kxd4
{[%clk 0:00:42.7]} 53. Kf4 {[%clk 0:00:07.6]} 53... Kd3 {[%clk 0:00:37.1]} 54.
Ke5 {[%clk 0:00:08.2]} 54... d4 {[%clk 0:00:37.5]} 55. Kd5 {[%clk 0:00:08.7]}
55... Ke3 {[%clk 0:00:36.7]} 56. Kc4 {[%clk 0:00:09.3]} 56... d3 {[%clk
0:00:36.7]} 57. Nb2 {[%clk 0:00:10]} 57... d2 {[%clk 0:00:36.4]} 58. Kc3 {[%clk
0:00:10.8]} 58... Ke2 {[%clk 0:00:33.7]} 59. Kb3 {[%clk 0:00:11.1]} 59... a4+
{[%clk 0:00:26.1]} 60. Kxa4 {[%clk 0:00:11.4]} 60... d1=Q+ {[%clk 0:00:26.6]}
61. Nxd1 {[%clk 0:00:12]} 1/2-1/2

[Event "Early-Titled-Tuesday-Blitz-February-13-2024"]
[Site "Chess.com"]
[Date "2024.02.13"]
[Round "10"]
[White "soloderisas"]
[Black "Kildepiotr"]
[Result "1-0"]
[WhiteElo "2552"]
[BlackElo "2690"]
[TimeControl "180+1"]
[EndTime "9:59:49 PST"]
[Termination "soloderisas won by resignation"]

1. d4 {[%clk 0:03:00.9]} 1... c5 {[%clk 0:02:59.7]} 2. c3 {[%clk 0:03:00.6]}
2... Nf6 {[%clk 0:02:59.6]} 3. Nf3 {[%clk 0:03:00.9]} 3... d5 {[%clk 0:03:00.2]}
4. Bf4 {[%clk 0:03:01.4]} 4... Bf5 {[%clk 0:03:00.2]} 5. e3 {[%clk 0:03:01]}
5... Nbd7 {[%clk 0:03:00.8]} 6. Nbd2 {[%clk 0:03:00.5]} 6... e6 {[%clk 0:03:01]}
7. Nh4 {[%clk 0:02:57.7]} 7... Bg6 {[%clk 0:03:00.8]} 8. Nxg6 {[%clk 0:02:57.4]}
8... hxg6 {[%clk 0:03:01.7]} 9. h3 {[%clk 0:02:56.1]} 9... Qb6 {[%clk
0:03:00.2]} 10. Qb3 {[%clk 0:02:55.3]} 10... c4 {[%clk 0:03:00.4]} 11. Qc2
{[%clk 0:02:55.5]} 11... Qc6 {[%clk 0:02:57]} 12. Be2 {[%clk 0:02:52.9]} 12...
Be7 {[%clk 0:02:55.1]} 13. O-O {[%clk 0:02:51.9]} 13... b5 {[%clk 0:02:51.4]}
14. Bf3 {[%clk 0:02:46.7]} 14... O-O {[%clk 0:02:49.6]} 15. e4 {[%clk
0:02:46.6]} 15... a5 {[%clk 0:02:47.6]} 16. Rfe1 {[%clk 0:02:44.3]} 16... Rfe8
{[%clk 0:02:47.2]} 17. exd5 {[%clk 0:02:32.7]} 17... exd5 {[%clk 0:02:47.1]} 18.
Re2 {[%clk 0:02:26.3]} 18... Bf8 {[%clk 0:02:47]} 19. Rae1 {[%clk 0:02:26.7]}
19... Rxe2 {[%clk 0:02:44.7]} 20. Rxe2 {[%clk 0:02:27.6]} 20... b4 {[%clk
0:02:45.2]} 21. Nf1 {[%clk 0:02:23.2]} 21... Qb5 {[%clk 0:02:39.6]} 22. Ne3
{[%clk 0:02:15.3]} 22... b3 {[%clk 0:02:38.9]} 23. axb3 {[%clk 0:02:14.5]} 23...
cxb3 {[%clk 0:02:39]} 24. Qc1 {[%clk 0:02:03.7]} 24... Nb6 {[%clk 0:02:35.9]}
25. c4 {[%clk 0:01:50.2]} 25... Rc8 {[%clk 0:02:29.1]} 26. c5 {[%clk 0:01:46.1]}
26... Nbd7 {[%clk 0:02:11.9]} 27. Qd1 {[%clk 0:01:24.7]} 27... Qb7 {[%clk
0:02:00.7]} 28. Qd3 {[%clk 0:01:14.8]} 28... a4 {[%clk 0:01:58.4]} 29. Re1
{[%clk 0:01:11.9]} 29... Rd8 {[%clk 0:01:35.8]} 30. Ra1 {[%clk 0:01:05.2]} 30...
Qc6 {[%clk 0:01:33.8]} 31. Qc3 {[%clk 0:00:47.2]} 31... Ne4 {[%clk 0:01:28.3]}
32. Bxe4 {[%clk 0:00:34.8]} 32... dxe4 {[%clk 0:01:28.4]} 33. Qc4 {[%clk
0:00:24]} 33... Ra8 {[%clk 0:01:27.5]} 34. Rc1 {[%clk 0:00:22.3]} 34... Rc8
{[%clk 0:01:03.9]} 35. Nd5 {[%clk 0:00:22]} 35... Qe6 {[%clk 0:00:49.4]} 36. c6
{[%clk 0:00:18.1]} 36... Nf6 {[%clk 0:00:32.9]} 37. Nb6 {[%clk 0:00:17]} 37...
Qf5 {[%clk 0:00:10.4]} 38. Nxc8 {[%clk 0:00:15]} 38... Qxf4 {[%clk 0:00:10.9]}
39. c7 {[%clk 0:00:14]} 39... a3 {[%clk 0:00:09.9]} 40. Ne7+ {[%clk 0:00:13.1]}
40... Bxe7 {[%clk 0:00:09.7]} 41. c8=Q+ {[%clk 0:00:13.5]} 41... Kh7 {[%clk
0:00:10.6]} 42. bxa3 {[%clk 0:00:13.6]} 42... b2 {[%clk 0:00:10.6]} 43. Rb1
{[%clk 0:00:13.9]} 43... e3 {[%clk 0:00:10.6]} 44. Rxb2 {[%clk 0:00:12]} 44...
Bd6 {[%clk 0:00:10.1]} 45. g3 {[%clk 0:00:11.4]} 45... exf2+ {[%clk 0:00:10.1]}
46. Rxf2 {[%clk 0:00:10.8]} 46... Qxg3+ {[%clk 0:00:10.7]} 47. Kf1 {[%clk
0:00:11.1]} 47... Ne4 {[%clk 0:00:08.1]} 48. Qe2 {[%clk 0:00:08.2]} 48... Qxh3+
{[%clk 0:00:05.8]} 49. Qxh3+ {[%clk 0:00:06.8]} 1-0

[Event "Early-Titled-Tuesday-Blitz-February-13-2024"]
[Site "Chess.com"]
[Date "2024.02.13"]
[Round "10"]
[White "JEIGOTH"]
[Black "marik_spb"]
[Result "1/2-1/2"]
[WhiteElo "2312"]
[BlackElo "2466"]
[TimeControl "180+1"]
[EndTime "9:59:49 PST"]
[Termination "Game drawn by repetition"]

1. d4 {[%clk 0:02:54.9]} 1... Nf6 {[%clk 0:02:50.8]} 2. Nf3 {[%clk 0:02:52.4]}
2... b6 {[%clk 0:02:50.4]} 3. e3 {[%clk 0:02:47.7]} 3... Bb7 {[%clk 0:02:50.7]}
4. Bd3 {[%clk 0:02:48]} 4... d5 {[%clk 0:02:47.1]} 5. O-O {[%clk 0:02:45.6]}
5... Nbd7 {[%clk 0:02:46.9]} 6. c3 {[%clk 0:02:46]} 6... e6 {[%clk 0:02:47.2]}
7. Qe2 {[%clk 0:02:46.2]} 7... Bd6 {[%clk 0:02:46.3]} 8. Nbd2 {[%clk 0:02:46.2]}
8... O-O {[%clk 0:02:46.3]} 9. e4 {[%clk 0:02:45.3]} 9... dxe4 {[%clk
0:02:46.5]} 10. Nxe4 {[%clk 0:02:46.2]} 10... Nxe4 {[%clk 0:02:45.1]} 11. Bxe4
{[%clk 0:02:47.1]} 11... Bxe4 {[%clk 0:02:43.9]} 12. Qxe4 {[%clk 0:02:48]} 12...
c5 {[%clk 0:02:38.9]} 13. Rd1 {[%clk 0:02:43.3]} 13... Qc7 {[%clk 0:02:33.4]}
14. Be3 {[%clk 0:02:30.1]} 14... Nf6 {[%clk 0:02:26.4]} 15. Qh4 {[%clk
0:02:24.6]} 15... Nd5 {[%clk 0:02:18.3]} 16. dxc5 {[%clk 0:02:24.7]} 16... Bxc5
{[%clk 0:02:18.5]} 17. Bxc5 {[%clk 0:02:24.2]} 17... Qxc5 {[%clk 0:02:19.1]} 18.
Ng5 {[%clk 0:02:13.6]} 18... h6 {[%clk 0:02:18.9]} 19. Ne4 {[%clk 0:02:13.4]}
19... Qc7 {[%clk 0:02:10.5]} 20. Rd3 {[%clk 0:02:06.2]} 20... Qf4 {[%clk
0:02:02.5]} 21. Qxf4 {[%clk 0:02:03.4]} 21... Nxf4 {[%clk 0:02:03.4]} 22. Rd7
{[%clk 0:02:03.2]} 22... b5 {[%clk 0:01:38.1]} 23. Rad1 {[%clk 0:01:59]} 23...
Nd5 {[%clk 0:01:37.9]} 24. Nd6 {[%clk 0:01:49.2]} 24... a6 {[%clk 0:01:31.7]}
25. g3 {[%clk 0:01:35.2]} 25... Rfd8 {[%clk 0:01:29.6]} 26. Rxd8+ {[%clk
0:01:31.5]} 26... Rxd8 {[%clk 0:01:30.5]} 27. Ne4 {[%clk 0:01:30.9]} 27... Kf8
{[%clk 0:01:26.4]} 28. f4 {[%clk 0:01:21.5]} 28... Ke7 {[%clk 0:01:23.4]} 29.
Nc5 {[%clk 0:01:21]} 29... Rc8 {[%clk 0:01:19.4]} 30. Nd3 {[%clk 0:01:07.6]}
30... a5 {[%clk 0:01:13.3]} 31. Kf2 {[%clk 0:01:02.7]} 31... b4 {[%clk
0:01:12.7]} 32. cxb4 {[%clk 0:00:55.1]} 32... axb4 {[%clk 0:01:13.6]} 33. Rd2
{[%clk 0:00:53.1]} 33... Ra8 {[%clk 0:01:13.5]} 34. b3 {[%clk 0:00:50.4]} 34...
g5 {[%clk 0:01:12.2]} 35. fxg5 {[%clk 0:00:49.5]} 35... hxg5 {[%clk 0:01:13.1]}
36. Ne5 {[%clk 0:00:43.3]} 36... Kf6 {[%clk 0:01:07.2]} 37. Nd3 {[%clk
0:00:35.2]} 37... Kf5 {[%clk 0:01:05.8]} 38. h3 {[%clk 0:00:32]} 38... Nc3
{[%clk 0:00:54.3]} 39. Ke3 {[%clk 0:00:24.5]} 39... Rxa2 {[%clk 0:00:34.3]} 40.
Nxb4 {[%clk 0:00:23]} 40... Rxd2 {[%clk 0:00:33.9]} 41. Kxd2 {[%clk 0:00:23.5]}
41... Ne4+ {[%clk 0:00:34.6]} 42. Ke3 {[%clk 0:00:22.6]} 42... Nxg3 {[%clk
0:00:35.5]} 43. Nd3 {[%clk 0:00:21.6]} 43... Ne4 {[%clk 0:00:20.1]} 44. b4
{[%clk 0:00:21.9]} 44... Nd6 {[%clk 0:00:17.4]} 45. Kd4 {[%clk 0:00:22.1]} 45...
f6 {[%clk 0:00:11.2]} 46. Kc5 {[%clk 0:00:21]} 46... Ne4+ {[%clk 0:00:10.2]} 47.
Kd4 {[%clk 0:00:20.2]} 47... e5+ {[%clk 0:00:09.3]} 48. Kd5 {[%clk 0:00:20.3]}
48... Nc3+ {[%clk 0:00:07.9]} 49. Kc4 {[%clk 0:00:20.4]} 49... Ne4 {[%clk
0:00:06.2]} 50. Kd5 {[%clk 0:00:20.3]} 50... Nc3+ {[%clk 0:00:04.4]} 51. Kc6
{[%clk 0:00:20.6]} 51... Na4 {[%clk 0:00:04.3]} 52. Kb5 {[%clk 0:00:19.2]} 52...
Nc3+ {[%clk 0:00:04.7]} 53. Kc4 {[%clk 0:00:19.5]} 53... Ne4 {[%clk 0:00:04.9]}
54. Kd5 {[%clk 0:00:17.6]} 1/2-1/2

[Event "Early-Titled-Tuesday-Blitz-February-13-2024"]
[Site "Chess.com"]
[Date "2024.02.13"]
[Round "10"]
[White "alexrustemov"]
[Black "FGHSMN"]
[Result "0-1"]
[WhiteElo "2832"]
[BlackElo "2977"]
[TimeControl "180+1"]
[EndTime "9:59:51 PST"]
[Termination "FGHSMN won on time"]

1. d4 {[%clk 0:03:00.9]} 1... Nf6 {[%clk 0:02:59.7]} 2. c4 {[%clk 0:03:01.4]}
2... e6 {[%clk 0:02:59.6]} 3. Nf3 {[%clk 0:03:00.6]} 3... Bb4+ {[%clk
0:02:58.8]} 4. Bd2 {[%clk 0:02:59.9]} 4... c5 {[%clk 0:02:59.2]} 5. Bxb4 {[%clk
0:02:58.9]} 5... cxb4 {[%clk 0:02:59.5]} 6. g3 {[%clk 0:02:59.7]} 6... O-O
{[%clk 0:02:56.7]} 7. Bg2 {[%clk 0:02:59.5]} 7... d6 {[%clk 0:02:57.2]} 8. O-O
{[%clk 0:02:57.7]} 8... Nc6 {[%clk 0:02:57.9]} 9. Qd3 {[%clk 0:02:54.6]} 9...
Qe7 {[%clk 0:02:55.4]} 10. Nbd2 {[%clk 0:02:51.7]} 10... a5 {[%clk 0:02:52.5]}
11. e4 {[%clk 0:02:48.3]} 11... e5 {[%clk 0:02:51.3]} 12. a3 {[%clk 0:02:46.3]}
12... bxa3 {[%clk 0:02:47]} 13. bxa3 {[%clk 0:02:44.2]} 13... b6 {[%clk
0:02:43.4]} 14. Rab1 {[%clk 0:02:42]} 14... Qc7 {[%clk 0:02:43.7]} 15. Rb2
{[%clk 0:02:20.3]} 15... Ba6 {[%clk 0:02:41.1]} 16. Rfb1 {[%clk 0:02:19.5]}
16... Rab8 {[%clk 0:02:39.8]} 17. h3 {[%clk 0:02:18.1]} 17... Rfc8 {[%clk
0:02:34]} 18. Qe3 {[%clk 0:02:14.9]} 18... Nd7 {[%clk 0:02:32]} 19. Bf1 {[%clk
0:02:10.2]} 19... h6 {[%clk 0:02:19.1]} 20. Kh2 {[%clk 0:02:09.2]} 20... Nd8
{[%clk 0:02:11.8]} 21. c5 {[%clk 0:01:58]} 21... Bxf1 {[%clk 0:02:11.5]} 22.
cxd6 {[%clk 0:01:54.9]} 22... Qxd6 {[%clk 0:02:12.4]} 23. Nxf1 {[%clk
0:01:49.4]} 23... Nc6 {[%clk 0:02:05.3]} 24. d5 {[%clk 0:01:46]} 24... Ne7
{[%clk 0:01:53.7]} 25. N1d2 {[%clk 0:01:46.3]} 25... Rc5 {[%clk 0:01:46.8]} 26.
Qd3 {[%clk 0:01:40.9]} 26... Rbc8 {[%clk 0:01:45.9]} 27. a4 {[%clk 0:01:33.8]}
27... Rc3 {[%clk 0:01:44]} 28. Qe2 {[%clk 0:01:31.7]} 28... Qf6 {[%clk 0:01:38]}
29. Kg2 {[%clk 0:01:31]} 29... h5 {[%clk 0:01:32.3]} 30. h4 {[%clk 0:01:29.9]}
30... R8c5 {[%clk 0:01:24.6]} 31. Rb3 {[%clk 0:01:28.5]} 31... Rc2 {[%clk
0:01:23.4]} 32. R1b2 {[%clk 0:01:28.8]} 32... Rxb2 {[%clk 0:01:20.3]} 33. Rxb2
{[%clk 0:01:28.8]} 33... Nc8 {[%clk 0:01:04.6]} 34. Nc4 {[%clk 0:01:27.2]} 34...
g6 {[%clk 0:01:04.2]} 35. Nfd2 {[%clk 0:01:24.6]} 35... Qd8 {[%clk 0:00:58.1]}
36. Qd3 {[%clk 0:01:20.2]} 36... Qc7 {[%clk 0:00:54]} 37. Qb3 {[%clk 0:01:20]}
37... Nd6 {[%clk 0:00:49.6]} 38. Nxd6 {[%clk 0:01:18.9]} 38... Qxd6 {[%clk
0:00:49.1]} 39. Nc4 {[%clk 0:01:18.6]} 39... Qc7 {[%clk 0:00:29.5]} 40. Nxb6
{[%clk 0:01:17.5]} 40... Rc3 {[%clk 0:00:30.2]} 41. Qb5 {[%clk 0:01:15.1]} 41...
Nxb6 {[%clk 0:00:27.1]} 42. Qxb6 {[%clk 0:01:15.2]} 42... Qc4 {[%clk 0:00:27.8]}
43. f3 {[%clk 0:00:48.3]} 43... Rc1 {[%clk 0:00:22]} 44. Rf2 {[%clk 0:00:46.4]}
44... Qxa4 {[%clk 0:00:20.4]} 45. Qb8+ {[%clk 0:00:42.1]} 45... Kh7 {[%clk
0:00:20.4]} 46. Qf8 {[%clk 0:00:34.1]} 46... Qd7 {[%clk 0:00:17.3]} 47. Rb2
{[%clk 0:00:31.7]} 47... a4 {[%clk 0:00:17.6]} 48. Qb8 {[%clk 0:00:21.1]} 48...
a3 {[%clk 0:00:13]} 49. Rb7 {[%clk 0:00:21]} 49... Rc2+ {[%clk 0:00:13.6]} 50.
Kg1 {[%clk 0:00:21]} 50... a2 {[%clk 0:00:14.3]} 0-1

[Event "Early-Titled-Tuesday-Blitz-February-13-2024"]
[Site "Chess.com"]
[Date "2024.02.13"]
[Round "10"]
[White "LaPiToB"]
[Black "KetiTsatsalashvili"]
[Result "0-1"]
[WhiteElo "2306"]
[BlackElo "2461"]
[TimeControl "180+1"]
[EndTime "9:59:53 PST"]
[Termination "KetiTsatsalashvili won on time"]

1. d4 {[%clk 0:03:00.9]} 1... Nf6 {[%clk 0:02:58.9]} 2. c4 {[%clk 0:03:00.5]}
2... e6 {[%clk 0:02:47.7]} 3. Nf3 {[%clk 0:02:59.6]} 3... d5 {[%clk 0:02:45.3]}
4. Nc3 {[%clk 0:02:58.6]} 4... Be7 {[%clk 0:02:44.2]} 5. Bf4 {[%clk 0:02:56.9]}
5... O-O {[%clk 0:02:44.3]} 6. e3 {[%clk 0:02:56.5]} 6... b6 {[%clk 0:02:42.1]}
7. Bd3 {[%clk 0:02:55.9]} 7... Bb7 {[%clk 0:02:41.8]} 8. O-O {[%clk 0:02:55.6]}
8... Ne4 {[%clk 0:02:42]} 9. Rc1 {[%clk 0:02:51.9]} 9... c5 {[%clk 0:02:32.1]}
10. cxd5 {[%clk 0:02:41.8]} 10... exd5 {[%clk 0:02:30.7]} 11. dxc5 {[%clk
0:02:39.8]} 11... bxc5 {[%clk 0:02:27.1]} 12. Nb5 {[%clk 0:02:31.7]} 12... Nd7
{[%clk 0:02:09.4]} 13. Bxe4 {[%clk 0:02:12.2]} 13... dxe4 {[%clk 0:02:07.8]} 14.
Nd2 {[%clk 0:02:11.6]} 14... Nf6 {[%clk 0:01:57.5]} 15. Qc2 {[%clk 0:01:26.8]}
15... Qd3 {[%clk 0:01:49.7]} 16. Qxd3 {[%clk 0:01:13.4]} 16... exd3 {[%clk
0:01:50.6]} 17. Rfd1 {[%clk 0:01:12.4]} 17... Rfd8 {[%clk 0:01:43.5]} 18. Nc4
{[%clk 0:01:04.9]} 18... Bc6 {[%clk 0:01:06]} 19. Nc3 {[%clk 0:00:56.3]} 19...
Nh5 {[%clk 0:01:00.4]} 20. Bc7 {[%clk 0:00:48.2]} 20... Rd7 {[%clk 0:01:00]} 21.
Ba5 {[%clk 0:00:46.3]} 21... Bd8 {[%clk 0:00:38.3]} 22. Bxd8 {[%clk 0:00:32.4]}
22... Raxd8 {[%clk 0:00:35.4]} 23. Ne5 {[%clk 0:00:31.6]} 23... Rc7 {[%clk
0:00:35.5]} 24. Nb1 {[%clk 0:00:25.9]} 24... Bb5 {[%clk 0:00:30.8]} 25. Nd2
{[%clk 0:00:22.5]} 25... f6 {[%clk 0:00:28.9]} 26. Nec4 {[%clk 0:00:21.7]} 26...
g6 {[%clk 0:00:25.8]} 27. Rc3 {[%clk 0:00:20.5]} 27... Ng7 {[%clk 0:00:25]} 28.
Rdc1 {[%clk 0:00:20.5]} 28... Ba6 {[%clk 0:00:21.1]} 29. b3 {[%clk 0:00:20.4]}
29... Ne6 {[%clk 0:00:20.7]} 30. Na5 {[%clk 0:00:19.6]} 30... Rdc8 {[%clk
0:00:15.3]} 31. Kf1 {[%clk 0:00:19.8]} 31... Rd8 {[%clk 0:00:15.6]} 32. Ke1
{[%clk 0:00:19.7]} 32... f5 {[%clk 0:00:16]} 33. Nac4 {[%clk 0:00:17.8]} 33...
Kf7 {[%clk 0:00:15.3]} 34. Nf3 {[%clk 0:00:17.2]} 34... Kf6 {[%clk 0:00:15.4]}
35. Kd2 {[%clk 0:00:17.4]} 35... g5 {[%clk 0:00:14.5]} 36. h3 {[%clk 0:00:17.2]}
36... g4 {[%clk 0:00:14.9]} 37. hxg4 {[%clk 0:00:17.6]} 37... fxg4 {[%clk
0:00:15.8]} 38. Nfe5 {[%clk 0:00:18]} 38... h5 {[%clk 0:00:15.5]} 39. Rh1 {[%clk
0:00:17.1]} 39... Ng5 {[%clk 0:00:15.4]} 40. f3 {[%clk 0:00:16.2]} 40... gxf3
{[%clk 0:00:15.2]} 41. gxf3 {[%clk 0:00:17.1]} 41... Bxc4 {[%clk 0:00:14.7]} 42.
Nxc4 {[%clk 0:00:14.2]} 42... Nxf3+ {[%clk 0:00:14.8]} 43. Kd1 {[%clk
0:00:14.8]} 43... Rg7 {[%clk 0:00:13.6]} 44. Rf1 {[%clk 0:00:10.3]} 44... Rg1
{[%clk 0:00:12.7]} 45. Rxg1 {[%clk 0:00:08.2]} 45... Nxg1 {[%clk 0:00:13.6]} 46.
e4 {[%clk 0:00:07.5]} 46... Nf3 {[%clk 0:00:13.1]} 47. e5+ {[%clk 0:00:07.9]}
47... Nxe5 {[%clk 0:00:13.2]} 48. Ne3 {[%clk 0:00:08.1]} 48... h4 {[%clk
0:00:10.8]} 49. Rxc5 {[%clk 0:00:08.2]} 49... h3 {[%clk 0:00:10.5]} 50. Ra5
{[%clk 0:00:03.7]} 50... h2 {[%clk 0:00:09.8]} 51. Ra6+ {[%clk 0:00:02.6]} 51...
Kg5 {[%clk 0:00:09.8]} 52. Kd2 {[%clk 0:00:01.7]} 52... h1=Q {[%clk 0:00:10.1]}
0-1